bitfinex-derivatives/quotes_SOLF0:USTF0_20251222
["timestamp","ask_amount","ask_price","bid_price","bid_amount"]
[1766433107199,0.0517585,124.8,124.77,0.05701597]
[1766433111500,0.0517585,124.8,124.74,8.01]
[1766433112602,0.0517585,124.8,124.75,15.2272]
[1766433113799,0.0517585,124.8,124.76,8.01]
[1766433114199,0.0517585,124.8,124.76,15.2267]
[1766433119409,0.0517585,124.8,124.77,15.2261]
[1766433119410,0.0017585,124.8,124.77,15.2261]
[1766433119595,0.0017585,124.8,124.77,109.8861]
[1766433120406,0.0017585,124.8,124.77,109.94225589]
[1766433120606,0.0017585,124.8,124.77,102.72615589]
[1766433120808,0.0017585,124.8,124.77,8.06615589]
[1766433122302,94.64,124.84,124.78,8.01]
[1766433122495,10.32699604,124.87,124.78,8.01]
[1766433122902,2.46699604,124.88,124.81,15.2238]
[1766433123108,7.86,124.89,124.82,8.01]
[1766433123308,0.0596349,124.87,124.84,0.05133809]
[1766433125210,97.12699604,124.91,124.84,8.06133809]
[1766433125404,104.98699604,124.91,124.84,8.06133809]
[1766433125603,2.46699604,124.89,124.84,8.06133809]
[1766433125802,104.98699604,124.91,124.84,8.06133809]
[1766433126199,2.46699604,124.89,124.84,0.05133809]
[1766433126401,10.52126402,124.89,124.84,0.05133809]
[1766433127711,8.05426798,124.89,124.84,0.05133809]
[1766433128903,15.26366798,124.89,124.84,0.05133809]
[1766433129105,8.05426798,124.89,124.84,0.05133809]
[1766433129814,15.26366798,124.89,124.84,0.05133809]
[1766433130012,8.0,124.88,124.84,0.00133809]
[1766433133408,7.26366798,124.89,124.84,0.00133809]
[1766433133610,0.05426798,124.89,124.84,0.00133809]
[1766433134825,8.05426798,124.89,124.84,0.00133809]
[1766433136613,0.05426798,124.89,124.84,0.00133809]
[1766433137925,0.05426798,124.89,124.84,15.17343809]
[1766433138125,0.05426798,124.89,124.84,7.96133809]
[1766433138426,0.00426798,124.89,124.86,7.96]
[1766433138630,8.0,124.94,124.86,7.96]
[1766433138813,8.0,124.94,124.87,7.96]
[1766433139626,0.05071516,124.92,124.89,0.05997987]
[1766433141226,15.2063,124.95,124.89,0.05997987]
[1766433142316,0.06073806,124.93,124.89,0.05997987]
[1766433143133,0.06073806,124.93,124.89,7.26907987]
[1766433145135,0.06073806,124.93,124.89,0.05997987]
[1766433148541,0.06073806,124.93,124.89,7.26907987]
[1766433149038,0.06073806,124.93,124.9,7.2086]
[1766433149247,0.06073806,124.93,124.89,0.05997987]
[1766433151146,0.06073806,124.93,124.89,8.29997987]
[1766433151642,10.65063418,124.99,124.92,15.4473]
[1766433151843,8.62,124.99,124.92,8.24]
[1766433152437,0.05245457,124.97,124.94,0.05292639]
[1766433154046,0.00245457,124.97,124.94,0.05292639]
[1766433154438,15.8217,125.02,124.94,15.49912639]
[1766433154638,8.62,125.01,124.94,8.24]
[1766433154842,8.62,125.01,124.91,8.24]
[1766433155233,8.62,124.99,124.92,7.2073]
[1766433155440,0.05389977,124.97,124.94,0.05097073]
[1766433155855,8.31389977,124.97,124.89,8.14]
[1766433156147,12.10624289,124.97,124.89,8.14]
[1766433156841,0.05084307,124.94,124.92,0.0556072]
[1766433163753,112.0309,125.02,124.92,15.4029072]
[1766433163754,8.26,124.99,124.92,15.4029072]
[1766433163950,8.26,124.99,124.89,8.14]
[1766433164652,0.05846138,124.95,124.93,0.05727169]
[1766433164849,8.26,124.99,124.93,0.05727169]
[1766433165041,8.26,124.99,124.91,8.14]
[1766433165755,8.26,124.99,124.91,15.3475]
[1766433166058,0.06029605,124.96,124.94,0.05352266]
[1766433169360,102.8,125.01,124.94,8.19352266]
[1766433169857,94.54,125.01,124.95,8.14]
[1766433170056,8.26,125.03,124.95,8.14]
[1766433170456,0.05812751,125.0,124.98,0.05591348]
[1766433170753,8.31812751,125.0,124.93,94.56]
[1766433170956,8.31812751,125.0,124.92,8.14]
[1766433171259,8.26,125.0,124.92,8.14]
[1766433171847,0.05716196,124.97,124.95,0.05802033]
[1766433172756,8.26,125.0,124.95,0.05802033]
[1766433173665,0.05982119,124.99,124.95,0.05802033]
[1766433173860,0.05982119,124.99,124.95,8.19802033]
[1766433174557,0.05982119,124.99,124.95,15.40352033]
[1766433175148,8.31982119,124.99,124.95,0.05802033]
[1766433176953,8.31982119,124.99,124.92,15.3473]
[1766433177755,8.31982119,124.99,124.93,15.3468]
[1766433178064,206.5517,125.04,124.93,15.3468]
[1766433178065,0.0590642,124.97,124.95,0.0524022]
[1766433178258,0.05338451,124.97,124.95,0.0512682]
[1766433179561,8.26,125.01,124.95,8.1912682]
[1766433180367,8.26,125.03,124.96,8.14]
[1766433180563,0.06090912,125.01,124.98,0.05848556]
[1766433181562,8.32090912,125.01,124.94,15.3461]
[1766433181757,8.26,125.0,124.94,15.3461]
[1766433182764,0.05100727,124.98,124.96,0.05325481]
[1766433182958,0.05100727,124.98,124.96,0.00325481]
[1766433190170,103.35,125.02,124.96,8.14325481]
[1766433191070,0.05837092,125.0,124.96,8.14325481]
[1766433191574,0.05837092,125.0,124.96,15.34835481]
[1766433192571,0.05837092,125.0,124.96,0.00325481]
[1766433194970,8.88837092,125.0,124.96,0.00325481]
[1766433195472,8.83,124.97,124.89,8.14]
[1766433196573,0.05712747,124.94,124.92,0.06105334]
[1766433196970,8.83,125.0,124.92,8.20105334]
[1766433197170,8.83,125.0,124.92,8.14]
[1766433197879,0.05850763,124.97,124.95,0.05710808]
[1766433205188,0.05850763,124.97,124.92,15.3469]
[1766433205684,0.05850763,124.97,124.9,112.1319]
[1766433205685,8.88850763,124.97,124.9,8.14]
[1766433206182,8.88850763,124.97,124.92,7.26664671]
[1766433210285,8.88850763,124.97,124.92,0.05924671]
[1766433213880,32.90850763,124.97,124.92,0.05924671]
[1766433214092,8.17,124.96,124.88,8.36]
[1766433214986,0.06113981,124.93,124.91,0.05129912]
[1766433220288,8.39113981,124.93,124.91,0.00129912]
[1766433220493,8.39113981,124.93,124.87,94.54]
[1766433221486,8.39113981,124.93,124.89,0.05215142]
[1766433228196,8.39113981,124.93,124.84,10.88238805]
[1766433228197,8.33,124.92,124.84,10.88238805]
[1766433229193,0.06026511,124.89,124.87,0.05985249]
[1766433229390,8.33,124.97,124.89,8.42]
[1766433229693,8.33,124.95,124.89,2.46238805]
[1766433229885,8.33,124.95,124.87,10.88238805]
[1766433230092,8.33,124.94,124.87,9.67248805]
[1766433230396,0.0547091,124.92,124.89,0.05908394]
[1766433230896,8.3847091,124.92,124.85,18.09338805]
[1766433231797,8.3847091,124.92,124.87,0.05736134]
[1766433233898,0.0547091,124.92,124.87,10.93974939]
[1766433234997,0.0547091,124.92,124.89,7.2091]
[1766433237202,0.0547091,124.92,124.9,7.2086]
[1766433237402,8.33,124.96,124.9,7.26268431]
[1766433237804,94.56,124.97,124.91,15.628]
[1766433237992,15.5337,124.99,124.91,8.42]
[1766433238191,8.33,124.99,124.92,2.46238805]
[1766433238399,0.05074015,124.97,124.94,2.5183755]
[1766433238699,0.00074015,124.97,124.94,10.9383755]
[1766433239198,0.00074015,124.97,124.94,18.1446755]
[1766433239903,8.33,125.02,124.95,7.2054]
[1766433240099,8.33,125.02,124.94,10.88238805]
[1766433240296,8.33,125.02,124.95,8.42]
[1766433240498,105.35238805,125.05,124.96,10.88238805]
[1766433240694,8.33,125.04,124.96,8.42]
[1766433240900,0.05310593,125.01,124.99,0.05220709]
[1766433241599,8.33,125.06,124.99,10.93459514]
[1766433242004,8.33,125.06,124.99,15.67550709]
[1766433242204,8.33,125.06,124.99,8.47220709]
[1766433242502,2.46238805,125.06,124.99,0.05220709]
[1766433242699,10.79238805,125.02,124.99,0.00220709]
[1766433242906,8.33,125.02,124.99,0.00220709]
[1766433244112,2.46238805,125.03,124.99,0.00220709]
[1766433244113,8.38225152,125.04,124.99,0.00220709]
[1766433245609,10.84463957,125.04,124.99,0.00220709]
[1766433246913,8.38225152,125.04,124.99,0.00220709]
[1766433249515,10.48238805,125.03,124.99,0.00220709]
[1766433252327,8.02,125.03,124.99,0.00220709]
[1766433252821,0.05225152,125.04,124.99,0.00220709]
[1766433253315,8.07225152,125.04,124.99,0.00220709]
[1766433253914,0.05225152,125.04,124.99,8.81220709]
[1766433254118,96.04,125.15,125.03,8.81]
[1766433254119,2.46238805,125.12,125.03,8.81]
[1766433254316,10.00745618,125.11,125.03,8.81]
[1766433254914,10.00745618,125.11,125.05,7.1997]
[1766433255117,2.51857791,125.09,125.07,5.196e-05]
[1766433256329,2.51857791,125.09,125.03,8.81]
[1766433257328,2.51857791,125.09,125.05,0.05725227]
[1766433258628,2.46238805,125.07,125.0,8.81]
[1766433259026,10.48238805,125.05,124.97,8.81]
[1766433259229,206.4566,125.08,124.97,8.81]
[1766433259230,2.46238805,125.03,124.97,8.81]
[1766433259729,0.05878503,125.01,124.99,0.05274849]
[1766433265533,10.54117308,125.01,124.93,8.81]
[1766433265727,10.48238805,125.01,124.93,8.81]
[1766433266525,0.0607667,124.98,124.96,0.05132452]
[1766433267827,0.0007667,124.98,124.96,0.05132452]
[1766433268031,2.46238805,125.01,124.96,0.05132452]
[1766433268740,10.48238805,125.03,124.97,8.81]
[1766433268938,0.05071669,125.01,124.99,0.05812634]
[1766433272643,0.05071669,125.01,124.95,8.06]
[1766433273130,2.51310474,125.01,124.95,8.06]
[1766433273636,2.51310474,125.01,124.97,0.05950471]
[1766433274244,2.51310474,125.01,124.95,8.06]
[1766433274245,8.04,124.97,124.88,8.06]
[1766433274448,2.46238805,124.95,124.88,8.06]
[1766433274631,8.04,124.97,124.9,8.06]
[1766433274944,2.46238805,124.99,124.9,8.06]
[1766433275145,2.46238805,124.97,124.9,8.06]
[1766433275330,0.05646648,124.96,124.93,0.05889965]
[1766433276145,0.05646648,124.96,124.9,8.06]
[1766433276337,8.90646648,124.96,124.89,7.2089]
[1766433276536,8.90646648,124.96,124.89,15.2689]
[1766433277234,8.90646648,124.96,124.91,0.04868031]
[1766433277443,0.05646648,124.96,124.91,8.10868031]
[1766433280036,0.05646648,124.96,124.87,112.1528]
[1766433280037,8.85,124.95,124.87,8.06]
[1766433280238,8.85,124.94,124.85,8.06]
[1766433280440,12.69644202,124.91,124.81,8.06]
[1766433280641,8.85,124.9,124.81,8.06]
[1766433280841,8.85,124.89,124.81,8.06]
[1766433281141,0.05256315,124.86,124.81,8.06]
[1766433281444,0.05256315,124.86,124.81,15.2735]
[1766433281641,0.05256315,124.86,124.82,8.06]
[1766433290038,8.85,124.9,124.82,8.06]
[1766433291142,0.05827617,124.87,124.85,0.05256315]
[1766433292438,8.85,124.9,124.85,0.05256315]
[1766433293552,0.05637498,124.89,124.85,0.05256315]
[1766433300754,8.85,124.94,124.85,8.11256315]
[1766433300967,8.85,124.94,124.82,8.06]
[1766433301152,19.57478127,124.92,124.82,8.06]
[1766433301357,16.0595,124.89,124.82,8.06]
[1766433301556,8.85,124.89,124.82,8.06]
[1766433301760,0.05583968,124.87,124.84,0.052799]
[1766433304863,8.90583968,124.87,124.84,0.002799]
[1766433305258,8.90583968,124.87,124.8,8.06]
[1766433306371,8.90583968,124.87,124.82,0.05463094]
[1766433306567,0.05583968,124.87,124.82,0.05463094]
[1766433307865,8.72,124.86,124.82,0.00463094]
[1766433309964,7.2084,124.91,124.82,8.43463094]
[1766433310263,7.2084,124.91,124.82,8.43]
[1766433310462,15.9284,124.91,124.82,8.43]
[1766433311075,15.9284,124.91,124.85,0.05159194]
[1766433311076,0.0588061,124.88,124.85,0.05159194]
[1766433312373,15.9273,124.93,124.85,8.48159194]
[1766433312667,15.9273,124.93,124.85,8.43]
[1766433313469,0.05437158,124.9,124.88,0.05934398]
[1766433313864,8.77437158,124.9,124.82,15.6428]
[1766433314062,8.72,124.9,124.83,8.43]
[1766433314873,0.05732066,124.88,124.85,0.05156624]
[1766433315373,7.2082,124.91,124.85,8.48156624]
[1766433316375,0.06032388,124.89,124.85,8.48156624]
[1766433318276,0.06032388,124.89,124.85,0.05156624]
[1766433318470,8.78032388,124.89,124.85,0.05156624]
[1766433318770,0.06032388,124.89,124.85,8.48156624]
[1766433319568,0.06032388,124.89,124.85,15.69286624]
[1766433319765,12.57154606,124.94,124.86,8.43]
[1766433319973,8.72,124.93,124.86,8.43]
[1766433320776,0.0523814,124.91,124.88,0.05385004]
[1766433326583,0.0023814,124.91,124.88,8.48385004]
[1766433327579,0.0023814,124.91,124.88,0.05385004]
[1766433328390,0.0023814,124.91,124.88,8.48385004]
[1766433328578,0.0023814,124.91,124.88,15.69355004]
[1766433330990,0.0023814,124.91,124.88,8.48385004]
[1766433331384,8.72,124.95,124.88,15.69345004]
[1766433332393,0.0582964,124.93,124.88,15.69345004]
[1766433333092,0.0582964,124.93,124.89,8.74]
[1766433333388,0.0582964,124.93,124.9,8.74]
[1766433333594,8.1,124.97,124.9,8.74]
[1766433334585,0.05748196,124.95,124.92,8.80071654]
[1766433334785,0.05748196,124.95,124.92,0.05307278]
[1766433337283,206.6186,125.01,124.93,15.6767]
[1766433337284,8.81,124.99,124.93,15.6767]
[1766433337995,11.27051242,124.99,124.93,15.6767]
[1766433338392,11.32390587,124.97,124.95,0.00200498]
[1766433338595,8.81,124.96,124.89,94.58]
[1766433338796,2.46051242,124.95,124.88,8.47]
[1766433339007,8.81,124.96,124.88,8.47]
[1766433339202,11.27051242,124.95,124.89,7.2091]
[1766433339496,0.05459679,124.93,124.91,0.05648756]
[1766433343702,18.47551242,124.97,124.91,0.05648756]
[1766433344201,8.81,124.99,124.91,8.52648756]
[1766433344503,8.81,124.97,124.91,8.47]
[1766433344699,0.05869258,124.95,124.93,0.06151314]
[1766433346189,8.81,124.99,124.93,8.53151314]
[1766433347095,0.05836367,124.97,124.93,8.53151314]
[1766433347499,0.05836367,124.97,124.93,15.73781314]
[1766433348203,0.05836367,124.97,124.94,15.6762]
[1766433349593,0.05836367,124.97,124.93,2.52202556]
[1766433349594,0.05836367,124.97,124.93,0.06151314]
[1766433349797,8.86836367,124.97,124.93,0.06151314]
[1766433349995,11.32887609,124.97,124.93,0.06151314]
[1766433350814,8.81,124.96,124.89,8.47]
[1766433350999,8.81,124.94,124.86,8.47]
[1766433351305,8.81,124.92,124.85,103.03]
[1766433351509,8.81,124.92,124.86,7.2103]
[1766433351808,0.06130118,124.9,124.88,0.05774611]
[1766433353205,11.27051242,124.94,124.88,0.05774611]
[1766433354014,9.66621242,124.95,124.88,8.52774611]
[1766433354210,0.05920736,124.93,124.88,8.52774611]
[1766433358313,0.05920736,124.93,124.88,15.73734611]
[1766433360808,11.27051242,124.97,124.89,8.47]
[1766433361525,8.81,124.96,124.89,8.47]
[1766433361708,8.81,124.96,124.9,7.2086]
[1766433361913,0.05597474,124.94,124.92,0.05610609]
[1766433367213,8.73,124.98,124.92,8.26610609]
[1766433367517,105.75051242,124.99,124.92,8.26610609]
[1766433368121,11.24882924,124.97,124.92,0.05610609]
[1766433368320,8.73,124.96,124.92,0.05610609]
[1766433370122,8.73,124.96,124.91,7.2075]
[1766433370327,8.73,124.96,124.89,7.2086]
[1766433370928,8.73,124.96,124.88,8.21]
[1766433371125,0.05950605,124.93,124.91,0.05581116]
[1766433372223,0.05950605,124.93,124.88,15.4193]
[1766433373328,0.05950605,124.93,124.89,0.05341567]
[1766433376844,8.78950605,124.93,124.89,0.05341567]
[1766433377949,11.25001847,124.93,124.89,0.05341567]
[1766433378250,8.78950605,124.93,124.89,0.05341567]
[1766433378654,11.25001847,124.93,124.89,0.05341567]
[1766433381258,0.05950605,124.93,124.89,0.05341567]
[1766433382754,0.05950605,124.93,124.89,8.26341567]
[1766433383962,0.05950605,124.93,124.9,8.21]
[1766433385860,0.05950605,124.93,124.9,15.4186]
[1766433386055,2.46051242,124.96,124.9,15.4186]
[1766433386954,2.46051242,124.96,124.92,0.05297457]
[1766433387159,0.05319863,124.94,124.92,0.05297457]
[1766433390955,8.70319863,124.94,124.87,103.32]
[1766433391354,11.11051242,124.93,124.87,8.74]
[1766433391860,0.06161035,124.91,124.89,0.05198577]
[1766433393666,8.71161035,124.91,124.89,0.00198577]
[1766433393853,11.17212277,124.91,124.85,8.74]
[1766433394861,11.17212277,124.91,124.87,0.05433194]
[1766433395258,0.06161035,124.91,124.87,0.05433194]
[1766433395652,0.06161035,124.91,124.87,8.19433194]
[1766433396252,0.06161035,124.91,124.87,0.05433194]
[1766433396858,0.06161035,124.91,124.87,8.19433194]
[1766433397655,0.00161035,124.91,124.87,8.19433194]
[1766433397861,104.22671242,124.95,124.87,8.19433194]
[1766433398067,101.7662,124.95,124.87,8.14]
[1766433398254,94.56,124.95,124.88,8.14]
[1766433398457,126.4475,125.01,124.88,8.14]
[1766433398458,8.57,124.98,124.89,120.2832]
[1766433398757,112.0327,125.02,124.89,120.2832]
[1766433398758,8.57,125.0,124.9,8.14]
[1766433398964,8.57,125.0,124.94,8.20024426]
[1766433399153,103.13,125.02,124.94,8.20024426]
[1766433399467,103.13,125.02,124.94,8.14]
[1766433399663,8.57,125.01,124.94,8.14]
[1766433399858,0.05189427,124.99,124.96,0.05726872]
[1766433400060,0.05189427,124.99,124.92,8.14]
[1766433400061,8.62189427,124.99,124.92,8.14]
[1766433400365,8.57,124.99,124.92,8.14]
[1766433400558,12.41679247,124.99,124.92,8.14]
[1766433400763,8.57,124.98,124.9,8.14]
[1766433401262,0.0558455,124.95,124.93,0.05501716]
[1766433403065,8.57,125.0,124.93,0.05501716]
[1766433404064,0.05145842,124.98,124.93,0.05501716]
[1766433405466,0.05145842,124.98,124.93,8.19501716]
[1766433407069,0.05145842,124.98,124.93,0.05501716]
[1766433407570,0.05145842,124.98,124.93,8.19501716]
[1766433414673,0.05145842,124.98,124.94,8.14]
[1766433416372,8.57,125.01,124.94,8.14]
[1766433416572,8.57,125.01,124.96,8.14]
[1766433417161,12.41679247,125.01,124.94,8.14]
[1766433417478,0.05915942,124.99,124.96,0.05269805]
[1766433421276,8.62915942,124.99,124.92,8.14]
[1766433421475,8.57,124.99,124.92,8.14]
[1766433421870,8.57,124.99,124.91,7.2075]
[1766433422180,0.05260215,124.96,124.94,0.05547767]
[1766433422369,0.05260215,124.96,124.9,8.14]
[1766433422565,0.05260215,124.96,124.89,94.54]
[1766433422566,8.62260215,124.96,124.89,94.54]
[1766433422772,8.62260215,124.96,124.88,8.14]
[1766433422975,8.57,124.96,124.88,8.14]
[1766433423379,0.05224544,124.93,124.91,0.05519331]
[1766433423882,0.05224544,124.93,124.88,8.14]
[1766433424082,8.62224544,124.93,124.87,7.2098]
[1766433424584,8.62224544,124.93,124.86,8.14]
[1766433424771,8.62224544,124.93,124.88,0.05468875]
[1766433425286,0.05224544,124.93,124.88,8.19468875]
[1766433427382,0.05224544,124.93,124.89,8.3]
[1766433430074,0.05224544,124.93,124.88,7.26438875]
[1766433430075,0.05224544,124.93,124.88,0.05468875]
[1766433430775,8.57224544,124.93,124.88,0.05468875]
[1766433434086,8.52,124.92,124.88,0.05468875]
[1766433434481,8.52,124.92,124.88,0.00468875]
[1766433437178,0.05224544,124.93,124.88,0.00468875]
[1766433440381,8.57224544,124.93,124.88,0.00468875]
[1766433442287,8.52,124.92,124.88,0.00468875]
[1766433442875,0.05224544,124.93,124.88,0.00468875]
[1766433443079,8.57224544,124.93,124.88,0.00468875]
[1766433443478,8.57224544,124.93,124.83,8.3]
[1766433443479,8.52,124.92,124.83,8.3]
[1766433443684,8.52,124.9,124.83,8.3]
[1766433444692,0.0528428,124.88,124.85,0.05327207]
[1766433445593,0.0028428,124.88,124.85,8.35327207]
[1766433445788,448.2061,125.0,124.85,8.35327207]
[1766433445789,8.52,124.95,124.86,8.3]
[1766433446493,8.52,124.95,124.87,8.3]
[1766433446991,8.57536022,124.92,124.9,0.00066124]
[1766433447192,8.57536022,124.92,124.85,15.5114]
[1766433447801,0.05536022,124.92,124.87,8.3]
[1766433448096,8.52,124.94,124.87,8.3]
[1766433448393,0.05805236,124.91,124.88,0.05109839]
[1766433448983,8.52,124.97,124.88,8.35109839]
[1766433449189,8.52,124.97,124.88,8.3]
[1766433449190,8.52,124.96,124.88,8.3]
[1766433449391,8.52,124.96,124.89,7.209]
[1766433449694,8.52,124.98,124.9,8.3]
[1766433449994,0.05196202,124.95,124.93,0.05316191]
[1766433450793,0.05196202,124.95,124.93,0.00316191]
[1766433451782,7.2064,124.94,124.86,8.55]
[1766433451984,8.93,124.92,124.82,8.55]
[1766433452395,8.93,124.92,124.83,8.55]
[1766433452897,0.05759906,124.89,124.86,0.05889236]
[1766433453298,8.98759906,124.89,124.81,8.55]
[1766433453486,8.93,124.89,124.81,8.55]
[1766433454396,0.05730027,124.86,124.84,0.05832191]
[1766433458802,8.74730027,124.86,124.78,11.04402435]
[1766433458995,8.69,124.86,124.78,8.35]
[1766433459401,8.69,124.86,124.79,7.2148]
[1766433459603,103.27,124.88,124.8,8.35]
[1766433459794,0.05227088,124.85,124.83,0.0528139]
[1766433460796,0.05227088,124.85,124.83,0.0028139]
[1766433463601,8.74227088,124.85,124.77,8.35]
[1766433463805,8.69,124.85,124.77,8.35]
[1766433464697,8.69,124.85,124.8,0.05684763]
[1766433465601,7.2112,124.86,124.8,0.05684763]
[1766433465807,0.0600175,124.84,124.8,0.05684763]
[1766433465993,8.7500175,124.84,124.8,0.05684763]
[1766433466301,112.2991,124.72,124.62,4.49161513]
[1766433466602,145.0094,124.75,124.62,4.49161513]
[1766433466804,120.9669,124.75,124.62,123.47887969]
[1766433467005,120.9761,124.74,124.62,4.49161513]
[1766433467196,0.05943017,124.7,124.67,0.05314529]
[1766433467807,7.27963017,124.7,124.67,0.05314529]
[1766433468206,15.96963017,124.7,124.62,12.84161513]
[1766433468401,15.9102,124.7,124.62,12.84161513]
[1766433468602,7.2215,124.68,124.62,12.84161513]
[1766433468809,7.2215,124.68,124.62,4.49161513]
[1766433469008,15.9115,124.68,124.62,4.49161513]
[1766433469195,0.05514791,124.66,124.64,0.05603856]
[1766433469803,0.05514791,124.66,124.59,8.35]
[1766433470338,8.69,124.65,124.56,9.74616056]
[1766433470610,15.9133,124.65,124.56,9.74616056]
[1766433470814,0.05620439,124.62,124.59,0.06117582]
[1766433473112,8.69,124.68,124.59,8.41117582]
[1766433473305,8.69,124.67,124.59,8.35]
[1766433474013,0.05174768,124.64,124.62,0.05076771]
[1766433474708,0.00174768,124.64,124.62,0.05076771]
[1766433476318,94.7,124.69,124.62,8.40076771]
[1766433476523,8.69,124.68,124.62,0.05076771]
[1766433477216,0.05322717,124.66,124.62,0.05076771]
[1766433478010,0.00322717,124.66,124.62,8.40076771]
[1766433478513,0.00322717,124.66,124.62,0.05076771]
[1766433480205,0.00322717,124.66,124.62,8.40076771]
[1766433480412,0.00322717,124.66,124.62,0.05076771]
[1766433481206,0.00322717,124.66,124.63,15.5739]
[1766433482121,8.69,124.71,124.64,15.5734]
[1766433482633,15.29336456,124.74,124.65,15.5728]
[1766433482916,8.69,124.73,124.65,15.5728]
[1766433483119,0.0011861,124.7,124.68,0.05991081]
[1766433483621,8.69,124.76,124.68,0.05991081]
[1766433483822,8.69,124.76,124.67,15.5716]
[1766433484616,0.05146632,124.73,124.7,0.06063267]
[1766433485022,8.69,124.76,124.7,0.06063267]
[1766433485423,8.69,124.74,124.64,8.35]
[1766433486014,8.69,124.74,124.65,15.6228]
[1766433486418,0.05971488,124.71,124.68,0.0585832]
[1766433488930,8.43971488,124.71,124.64,7.2232]
[1766433489422,8.43971488,124.71,124.62,8.4]
[1766433489625,8.38,124.71,124.62,103.14]
[1766433490026,0.05860095,124.68,124.65,0.05345075]
[1766433490923,118.88716456,124.74,124.66,8.4]
[1766433490924,8.38,124.74,124.66,8.4]
[1766433491227,103.12,124.77,124.69,15.6206]
[1766433491427,8.38,124.8,124.71,8.4]
[1766433491822,0.05098542,124.77,124.74,0.06044132]
[1766433496628,0.00098542,124.77,124.74,8.46044132]
[1766433497232,0.00098542,124.77,124.74,0.06044132]
[1766433499835,0.00098542,124.77,124.74,8.46044132]
[1766433500035,8.38,124.81,124.74,8.46044132]
[1766433500350,103.08,124.84,124.74,8.46044132]
[1766433500540,103.08,124.84,124.74,8.4]
[1766433500745,15.5928,124.83,124.74,110.3174]
[1766433500942,0.05155223,124.8,124.77,0.05146456]
[1766433504057,0.05155223,124.8,124.77,0.00146456]
[1766433508750,103.08,124.84,124.77,7.21746456]
[1766433509854,0.06043183,124.82,124.77,7.21746456]
[1766433510254,0.06043183,124.82,124.77,0.00146456]
[1766433512859,0.06043183,124.82,124.77,7.21746456]
[1766433513562,0.06043183,124.82,124.77,0.00146456]
[1766433513855,7.57043183,124.82,124.77,0.00146456]
[1766433514564,14.78373183,124.82,124.77,0.00146456]
[1766433514855,7.51,124.81,124.77,0.00146456]
[1766433515664,7.51,124.8,124.77,0.00146456]
[1766433516266,7.51,124.8,124.72,7.31]
[1766433516666,7.1,124.82,124.74,7.31]
[1766433517066,7.1,124.82,124.76,7.2166]
[1766433517258,0.05266195,124.8,124.78,0.05778148]
[1766433521258,7.2115,124.85,124.78,0.05778148]
[1766433521259,7.1,124.85,124.78,7.27328148]
[1766433521949,14.3115,124.85,124.78,0.05778148]
[1766433522150,7.1,124.84,124.78,0.05778148]
[1766433522355,0.05277282,124.82,124.78,0.05778148]
[1766433527159,0.05277282,124.82,124.78,7.27328148]
[1766433527561,0.05277282,124.82,124.78,14.58328148]
[1766433530865,0.05277282,124.82,124.79,7.2149]
[1766433536468,7.1,124.86,124.79,14.5249]
[1766433536868,24.05,124.88,124.76,112.2537]
[1766433536869,7.1,124.88,124.8,14.5243]
[1766433537466,0.05059111,124.85,124.83,0.05900216]
[1766433540990,7.1,124.83,124.75,7.31]
[1766433541197,7.1,124.83,124.74,0.44557]
[1766433541385,7.1,124.81,124.74,0.44557]
[1766433541588,7.1,124.8,124.74,0.44557]
[1766433541800,7.15089597,124.78,124.7,7.31]
[1766433542099,7.1,124.78,124.7,7.31]
[1766433542494,14.3157,124.78,124.71,7.31]
[1766433542994,0.05351255,124.76,124.73,0.05355513]
[1766433543697,7.2149,124.8,124.73,7.36355513]
[1766433544004,7.2149,124.8,124.73,7.31]
[1766433544594,7.2149,124.8,124.73,14.5284]
[1766433544796,0.05067206,124.78,124.75,0.05063098]
[1766433548600,6.71,124.86,124.78,6.86]
[1766433548898,6.71,124.89,124.79,6.86]
[1766433549202,6.71,124.89,124.81,7.2136]
[1766433549203,6.71,124.88,124.81,7.2136]
[1766433549494,0.05977804,124.86,124.83,0.0511902]